[Event "*** SCC Grand Prix: Titled Tuesday Blitz"]
[Site "Chess.com"]
[Date "2020.09.29"]
[Round "3"]
[White "TC2304"]
[Black "AleksibFan"]
[Result "1-0"]
[WhiteElo "2317"]
[BlackElo "2594"]
[TimeControl "180+1"]
[EndTime "10:29:06 PDT"]
[Termination "TC2304 won by checkmate"]

1. d4 {[%clk 0:03:00.9]} 1... d5 {[%clk 0:02:59.9]} 2. c4 {[%clk 0:03:01.1]}
2... c6 {[%clk 0:03:00.1]} 3. Nc3 {[%clk 0:03:01.2]} 3... Nf6 {[%clk 0:03:00.3]}
4. e3 {[%clk 0:03:01.8]} 4... a6 {[%clk 0:03:00]} 5. Qc2 {[%clk 0:02:55.4]} 5...
e6 {[%clk 0:02:59]} 6. b3 {[%clk 0:02:55.8]} 6... Nbd7 {[%clk 0:02:58.6]} 7. Bd3
{[%clk 0:02:53.4]} 7... b6 {[%clk 0:02:57.8]} 8. Nf3 {[%clk 0:02:49.5]} 8... Bb7
{[%clk 0:02:57.2]} 9. O-O {[%clk 0:02:49.3]} 9... dxc4 {[%clk 0:02:55.9]} 10.
bxc4 {[%clk 0:02:46.4]} 10... c5 {[%clk 0:02:55.6]} 11. Ne4 {[%clk 0:02:43.6]}
11... Qc7 {[%clk 0:02:50.3]} 12. Ba3 {[%clk 0:02:31.3]} 12... cxd4 {[%clk
0:02:10.6]} 13. Bxf8 {[%clk 0:02:30.1]} 13... Kxf8 {[%clk 0:02:07.6]} 14. Nxd4
{[%clk 0:02:18.3]} 14... g6 {[%clk 0:01:54.9]} 15. Rfd1 {[%clk 0:02:03.6]} 15...
Kg7 {[%clk 0:01:51.6]} 16. Rac1 {[%clk 0:01:56.6]} 16... Rhd8 {[%clk 0:01:32.8]}
17. Qb2 {[%clk 0:01:40.9]} 17... Rac8 {[%clk 0:01:04.9]} 18. g4 {[%clk
0:01:27.1]} 18... Qe5 {[%clk 0:00:52.4]} 19. f4 {[%clk 0:01:21.9]} 19... Qb8
{[%clk 0:00:30.9]} 20. g5 {[%clk 0:01:10.2]} 20... Bxe4 {[%clk 0:00:28.9]} 21.
Bxe4 {[%clk 0:01:07.1]} 21... e5 {[%clk 0:00:24.9]} 22. gxf6+ {[%clk 0:01:06.6]}
22... Kg8 {[%clk 0:00:23.3]} 23. Ne2 {[%clk 0:00:54.3]} 23... Nxf6 {[%clk
0:00:21]} 24. Bd5 {[%clk 0:00:47.2]} 24... Ng4 {[%clk 0:00:18.6]} 25. Rd3 {[%clk
0:00:34.6]} 25... exf4 {[%clk 0:00:10.6]} 26. Nxf4 {[%clk 0:00:27.5]} 26... Qc7
{[%clk 0:00:08.2]} 27. h3 {[%clk 0:00:24.6]} 27... Ne5 {[%clk 0:00:07.8]} 28.
Rd2 {[%clk 0:00:20.9]} 28... Qe7 {[%clk 0:00:07.5]} 29. Rg2 {[%clk 0:00:17.8]}
29... Qf6 {[%clk 0:00:04.1]} 30. Rf1 {[%clk 0:00:16.4]} 30... Qe7 {[%clk
0:00:03.2]} 31. Qf2 {[%clk 0:00:12.3]} 31... Kf8 {[%clk 0:00:02.7]} 32. Qg3
{[%clk 0:00:11.3]} 32... Ke8 {[%clk 0:00:03.6]} 33. Qg5 {[%clk 0:00:11]} 33...
Qxg5 {[%clk 0:00:03]} 34. Rxg5 {[%clk 0:00:11.9]} 34... f6 {[%clk 0:00:03.7]}
35. Rg3 {[%clk 0:00:10.9]} 35... Ke7 {[%clk 0:00:04.3]} 36. h4 {[%clk
0:00:11.4]} 36... Rd7 {[%clk 0:00:04.4]} 37. h5 {[%clk 0:00:12]} 37... Rdc7
{[%clk 0:00:04.4]} 38. hxg6 {[%clk 0:00:12.1]} 38... hxg6 {[%clk 0:00:05.3]} 39.
Nxg6+ {[%clk 0:00:12.8]} 39... Kd6 {[%clk 0:00:05.4]} 40. Nxe5 {[%clk
0:00:12.9]} 40... fxe5 {[%clk 0:00:06.3]} 41. Rf6+ {[%clk 0:00:10.7]} 41... Kc5
{[%clk 0:00:06.4]} 42. Rf5 {[%clk 0:00:10.7]} 42... Re7 {[%clk 0:00:05.7]} 43.
Rgg5 {[%clk 0:00:11.1]} 43... Rce8 {[%clk 0:00:05.3]} 44. Kf2 {[%clk 0:00:11.6]}
44... b5 {[%clk 0:00:04.4]} 45. Rg4 {[%clk 0:00:08]} 45... bxc4 {[%clk 0:00:04]}
46. Bxc4 {[%clk 0:00:08.9]} 46... Rd8 {[%clk 0:00:02.7]} 47. Be2 {[%clk
0:00:08.9]} 47... Rd2 {[%clk 0:00:02.4]} 48. Rgg5 {[%clk 0:00:08.6]} 48... Rxa2
{[%clk 0:00:01.8]} 49. Rxe5+ {[%clk 0:00:08.4]} 49... Rxe5 {[%clk 0:00:02.7]}
50. Rxe5+ {[%clk 0:00:09.2]} 50... Kb4 {[%clk 0:00:03.6]} 51. Re4+ {[%clk
0:00:07.7]} 51... Kc3 {[%clk 0:00:03.4]} 52. Rc4+ {[%clk 0:00:08.1]} 52... Kb3
{[%clk 0:00:03.2]} 53. Rc6 {[%clk 0:00:07]} 53... a5 {[%clk 0:00:02.4]} 54. Ke1
{[%clk 0:00:07.6]} 54... Ra1+ {[%clk 0:00:02.4]} 55. Kd2 {[%clk 0:00:08.2]}
55... Kb4 {[%clk 0:00:03.3]} 56. Rc4+ {[%clk 0:00:07.5]} 56... Kb3 {[%clk
0:00:03.4]} 57. Rc3+ {[%clk 0:00:07.1]} 57... Kb4 {[%clk 0:00:03.4]} 58. Rc2
{[%clk 0:00:07.7]} 58... Ra3 {[%clk 0:00:02.3]} 59. e4 {[%clk 0:00:07.7]} 59...
Kb3 {[%clk 0:00:01.7]} 60. Rc3+ {[%clk 0:00:07.6]} 60... Kb4 {[%clk 0:00:02.6]}
61. Rxa3 {[%clk 0:00:07.9]} 61... Kxa3 {[%clk 0:00:03.5]} 62. Kc3 {[%clk
0:00:08.4]} 62... Ka4 {[%clk 0:00:02.9]} 63. e5 {[%clk 0:00:08.4]} 63... Ka3
{[%clk 0:00:03.8]} 64. e6 {[%clk 0:00:09]} 64... Ka4 {[%clk 0:00:04.7]} 65. e7
{[%clk 0:00:09.5]} 65... Ka3 {[%clk 0:00:05.4]} 66. e8=Q {[%clk 0:00:09.6]}
66... a4 {[%clk 0:00:06.3]} 67. Qe7+ {[%clk 0:00:08.7]} 67... Ka2 {[%clk
0:00:07.2]} 68. Bc4+ {[%clk 0:00:09.2]} 68... Ka1 {[%clk 0:00:07.2]} 69. Qe1#
{[%clk 0:00:09.6]} 1-0

[Event "*** SCC Grand Prix: Titled Tuesday Blitz"]
[Site "Chess.com"]
[Date "2020.09.29"]
[Round "3"]
[White "denispopov"]
[Black "djano"]
[Result "1/2-1/2"]
[WhiteElo "1966"]
[BlackElo "2448"]
[TimeControl "180+1"]
[EndTime "10:29:08 PDT"]
[Termination "Game drawn by repetition"]

1. e4 {[%clk 0:03:00.9]} 1... g6 {[%clk 0:03:00.1]} 2. d4 {[%clk 0:02:59.9]}
2... Bg7 {[%clk 0:03:00.4]} 3. Nc3 {[%clk 0:03:00.3]} 3... a6 {[%clk 0:03:00.5]}
4. Be3 {[%clk 0:03:00.2]} 4... b5 {[%clk 0:03:00.6]} 5. a3 {[%clk 0:03:00.2]}
5... Bb7 {[%clk 0:03:00.6]} 6. Qd2 {[%clk 0:03:00]} 6... d6 {[%clk 0:03:00.3]}
7. f4 {[%clk 0:02:57.7]} 7... Nd7 {[%clk 0:02:58.9]} 8. e5 {[%clk 0:02:56.3]}
8... Nh6 {[%clk 0:02:56.3]} 9. Nf3 {[%clk 0:02:51.4]} 9... c5 {[%clk 0:02:46]}
10. exd6 {[%clk 0:02:47.8]} 10... exd6 {[%clk 0:02:43.7]} 11. dxc5 {[%clk
0:02:45.6]} 11... O-O {[%clk 0:02:32.2]} 12. cxd6 {[%clk 0:02:38.6]} 12... Nf5
{[%clk 0:02:31.8]} 13. O-O-O {[%clk 0:02:35.8]} 13... Re8 {[%clk 0:02:30.8]} 14.
Bf2 {[%clk 0:02:33.8]} 14... Rc8 {[%clk 0:02:24.5]} 15. Nd4 {[%clk 0:01:56.8]}
15... Nxd6 {[%clk 0:02:12.2]} 16. Ndxb5 {[%clk 0:01:53.7]} 16... Nxb5 {[%clk
0:01:27.3]} 17. Nxb5 {[%clk 0:01:34.5]} 17... axb5 {[%clk 0:01:22.1]} 18. Qxd7
{[%clk 0:01:30.3]} 18... Qf6 {[%clk 0:01:19.5]} 19. Bd4 {[%clk 0:01:09.2]} 19...
Qxf4+ {[%clk 0:01:18.8]} 20. Kb1 {[%clk 0:01:05]} 20... Bc6 {[%clk 0:01:05.6]}
21. Qa7 {[%clk 0:00:41.2]} 21... Red8 {[%clk 0:00:53]} 22. c3 {[%clk 0:00:36.1]}
22... b4 {[%clk 0:00:43.6]} 23. axb4 {[%clk 0:00:34.4]} 23... Ra8 {[%clk
0:00:41.8]} 24. Qc5 {[%clk 0:00:32.7]} 24... Rdc8 {[%clk 0:00:22.3]} 25. Bd3
{[%clk 0:00:27.3]} 25... Ba4 {[%clk 0:00:20.5]} 26. Qd5 {[%clk 0:00:21.3]} 26...
Bxd1 {[%clk 0:00:18.8]} 27. Bxg7 {[%clk 0:00:16.9]} 27... Rd8 {[%clk 0:00:19]}
28. Qe4 {[%clk 0:00:13.6]} 28... Qxe4 {[%clk 0:00:17.4]} 29. Bxe4 {[%clk
0:00:12.4]} 29... Ra7 {[%clk 0:00:12.9]} 30. Bd4 {[%clk 0:00:11.4]} 30... Re7
{[%clk 0:00:11.5]} 31. Rxd1 {[%clk 0:00:08.8]} 31... Rxe4 {[%clk 0:00:11.4]} 32.
Rd2 {[%clk 0:00:09]} 32... f5 {[%clk 0:00:10.2]} 33. Kc2 {[%clk 0:00:09.3]}
33... Kf7 {[%clk 0:00:10.7]} 34. b5 {[%clk 0:00:09.9]} 34... Ke6 {[%clk
0:00:10.3]} 35. b6 {[%clk 0:00:02.5]} 35... Rd7 {[%clk 0:00:11.2]} 36. b4 {[%clk
0:00:02.5]} 36... f4 {[%clk 0:00:11.2]} 37. Rf2 {[%clk 0:00:02.8]} 37... g5
{[%clk 0:00:11.4]} 38. Rf3 {[%clk 0:00:03.3]} 38... Kf5 {[%clk 0:00:11.8]} 39.
Rf2 {[%clk 0:00:03.8]} 39... g4 {[%clk 0:00:12.4]} 40. b5 {[%clk 0:00:02.4]}
40... h5 {[%clk 0:00:12.3]} 41. Kb3 {[%clk 0:00:02.4]} 41... Rexd4 {[%clk
0:00:11.9]} 42. cxd4 {[%clk 0:00:02]} 42... Ke4 {[%clk 0:00:12.8]} 43. b7 {[%clk
0:00:02.1]} 43... Rxb7 {[%clk 0:00:12.5]} 44. Kc4 {[%clk 0:00:03]} 44... Ke3
{[%clk 0:00:12.8]} 45. Rb2 {[%clk 0:00:03]} 45... f3 {[%clk 0:00:13.2]} 46. gxf3
{[%clk 0:00:03.1]} 46... gxf3 {[%clk 0:00:14.1]} 47. d5 {[%clk 0:00:03.8]} 47...
f2 {[%clk 0:00:13.9]} 48. Rxf2 {[%clk 0:00:04.2]} 48... Kxf2 {[%clk 0:00:14.8]}
49. d6 {[%clk 0:00:04.7]} 49... Ke3 {[%clk 0:00:15]} 50. Kc5 {[%clk 0:00:05.2]}
50... Ke4 {[%clk 0:00:15.5]} 51. Kc6 {[%clk 0:00:05.7]} 51... Rb8 {[%clk
0:00:15.6]} 52. d7 {[%clk 0:00:05.9]} 52... Ke5 {[%clk 0:00:15.4]} 53. Kc7
{[%clk 0:00:06.4]} 53... Rxb5 {[%clk 0:00:15.8]} 54. d8=Q {[%clk 0:00:06.5]}
54... Rd5 {[%clk 0:00:16.7]} 55. Qe8+ {[%clk 0:00:06.4]} 55... Kd4 {[%clk
0:00:16.9]} 56. Qh8+ {[%clk 0:00:06.6]} 56... Ke4 {[%clk 0:00:16.3]} 57. Qh7+
{[%clk 0:00:06.5]} 57... Rf5 {[%clk 0:00:17.2]} 58. Kd6 {[%clk 0:00:06.1]} 58...
Kf4 {[%clk 0:00:16.7]} 59. Qh6+ {[%clk 0:00:06.5]} 59... Kg4 {[%clk 0:00:16.7]}
60. Qg6+ {[%clk 0:00:06.9]} 60... Rg5 {[%clk 0:00:15.3]} 61. Qe4+ {[%clk
0:00:07.4]} 61... Kh3 {[%clk 0:00:15]} 62. Qe3+ {[%clk 0:00:06.3]} 62... Kh4
{[%clk 0:00:14.2]} 63. Ke6 {[%clk 0:00:03.6]} 63... Rg2 {[%clk 0:00:12.9]} 64.
Qf4+ {[%clk 0:00:03.1]} 64... Kh3 {[%clk 0:00:13.1]} 65. Qf3+ {[%clk 0:00:03.2]}
65... Kxh2 {[%clk 0:00:13]} 66. Qxh5+ {[%clk 0:00:03.5]} 66... Kg3 {[%clk
0:00:13]} 67. Qg5+ {[%clk 0:00:03.7]} 67... Kf2 {[%clk 0:00:13.6]} 68. Qf5+
{[%clk 0:00:04.2]} 68... Ke2 {[%clk 0:00:13.8]} 69. Qe5+ {[%clk 0:00:04.7]}
69... Kf3 {[%clk 0:00:13.9]} 70. Qd5+ {[%clk 0:00:05.1]} 70... Kg3 {[%clk
0:00:13.5]} 71. Qe5+ {[%clk 0:00:05.5]} 71... Kf3 {[%clk 0:00:13.6]} 72. Qf5+
{[%clk 0:00:05.9]} 72... Kg3 {[%clk 0:00:13.9]} 73. Qe5+ {[%clk 0:00:06.6]}
73... Kf3 {[%clk 0:00:14.1]} 1/2-1/2

[Event "*** SCC Grand Prix: Titled Tuesday Blitz"]
[Site "Chess.com"]
[Date "2020.09.29"]
[Round "3"]
[White "Belka1989"]
[Black "Meri-Arabidze"]
[Result "1/2-1/2"]
[WhiteElo "2276"]
[BlackElo "2709"]
[TimeControl "180+1"]
[EndTime "10:29:10 PDT"]
[Termination "Game drawn by repetition"]

1. d4 {[%clk 0:02:45.7]} 1... d5 {[%clk 0:02:59.4]} 2. Nf3 {[%clk 0:02:46]} 2...
Nf6 {[%clk 0:02:58.8]} 3. Bf4 {[%clk 0:02:46.4]} 3... e6 {[%clk 0:02:58.6]} 4.
e3 {[%clk 0:02:46.8]} 4... Bd6 {[%clk 0:02:58.8]} 5. Ne5 {[%clk 0:02:46.5]} 5...
O-O {[%clk 0:02:57.8]} 6. Nd2 {[%clk 0:02:45.7]} 6... c5 {[%clk 0:02:57.9]} 7.
c3 {[%clk 0:02:45.5]} 7... Nc6 {[%clk 0:02:58]} 8. Bg3 {[%clk 0:02:45.8]} 8...
Qc7 {[%clk 0:02:56.9]} 9. f4 {[%clk 0:02:45.3]} 9... Ne7 {[%clk 0:02:55.3]} 10.
Bd3 {[%clk 0:02:38.6]} 10... Nf5 {[%clk 0:02:53.6]} 11. Qf3 {[%clk 0:02:35.7]}
11... Be7 {[%clk 0:02:50]} 12. O-O {[%clk 0:02:24.5]} 12... b6 {[%clk
0:02:49.6]} 13. Bf2 {[%clk 0:01:57.8]} 13... Bb7 {[%clk 0:02:49.2]} 14. Ng4
{[%clk 0:01:57.3]} 14... Nd6 {[%clk 0:02:25.1]} 15. Nxf6+ {[%clk 0:01:56.2]}
15... Bxf6 {[%clk 0:02:26]} 16. g4 {[%clk 0:01:48.8]} 16... g6 {[%clk
0:02:23.4]} 17. Bg3 {[%clk 0:01:43.3]} 17... Qe7 {[%clk 0:02:17.3]} 18. a4
{[%clk 0:01:28.1]} 18... Bg7 {[%clk 0:02:12.3]} 19. g5 {[%clk 0:01:14.7]} 19...
a6 {[%clk 0:02:08.3]} 20. h4 {[%clk 0:01:07.2]} 20... c4 {[%clk 0:01:53.7]} 21.
Bc2 {[%clk 0:01:06.5]} 21... b5 {[%clk 0:01:53.8]} 22. axb5 {[%clk 0:01:00.3]}
22... axb5 {[%clk 0:01:54.7]} 23. h5 {[%clk 0:01:00.3]} 23... Rxa1 {[%clk
0:01:40.8]} 24. Rxa1 {[%clk 0:01:00.4]} 24... Ra8 {[%clk 0:01:41.4]} 25. Qd1
{[%clk 0:00:49.6]} 25... Nf5 {[%clk 0:01:34.2]} 26. Rxa8+ {[%clk 0:00:38.3]}
26... Bxa8 {[%clk 0:01:33.9]} 27. Qa1 {[%clk 0:00:38.3]} 27... Qd8 {[%clk
0:01:11.4]} 28. Bxf5 {[%clk 0:00:34.5]} 28... exf5 {[%clk 0:01:08.8]} 29. hxg6
{[%clk 0:00:33.6]} 29... hxg6 {[%clk 0:01:07.3]} 30. Nf3 {[%clk 0:00:33.9]}
30... Bc6 {[%clk 0:00:55.5]} 31. Qa7 {[%clk 0:00:23]} 31... Be8 {[%clk 0:00:46]}
32. Kf2 {[%clk 0:00:16.8]} 32... Bf8 {[%clk 0:00:45.6]} 33. Ne5 {[%clk
0:00:16.3]} 33... b4 {[%clk 0:00:45.2]} 34. Qb7 {[%clk 0:00:13.3]} 34... bxc3
{[%clk 0:00:43.7]} 35. bxc3 {[%clk 0:00:13.5]} 35... Qa5 {[%clk 0:00:34]} 36.
Kf3 {[%clk 0:00:10.3]} 36... Qxc3 {[%clk 0:00:28.7]} 37. Qxd5 {[%clk 0:00:10.4]}
37... Qc1 {[%clk 0:00:23.6]} 38. Qxc4 {[%clk 0:00:10]} 38... Qh1+ {[%clk
0:00:20.6]} 39. Kf2 {[%clk 0:00:10.2]} 39... Qe4 {[%clk 0:00:13.8]} 40. d5
{[%clk 0:00:04.4]} 40... Qb1 {[%clk 0:00:10.5]} 41. Kf3 {[%clk 0:00:03.7]} 41...
Qh1+ {[%clk 0:00:09.2]} 42. Kf2 {[%clk 0:00:04.2]} 42... Qd1 {[%clk 0:00:08.4]}
43. Qc8 {[%clk 0:00:03.5]} 43... Qd2+ {[%clk 0:00:06.9]} 44. Kg1 {[%clk
0:00:02.9]} 44... Qxe3+ {[%clk 0:00:06.6]} 45. Bf2 {[%clk 0:00:03.3]} 45... Qxf4
{[%clk 0:00:05.7]} 46. Qxe8 {[%clk 0:00:03.3]} 46... Qxg5+ {[%clk 0:00:06]} 47.
Kf1 {[%clk 0:00:02.7]} 47... Qc1+ {[%clk 0:00:06]} 48. Kg2 {[%clk 0:00:02.5]}
48... Qg5+ {[%clk 0:00:05.8]} 49. Kf1 {[%clk 0:00:02.8]} 49... Qc1+ {[%clk
0:00:05.7]} 50. Ke2 {[%clk 0:00:03.2]} 50... Qc2+ {[%clk 0:00:05.6]} 51. Kf1
{[%clk 0:00:02.7]} 51... Qd1+ {[%clk 0:00:05.4]} 52. Kg2 {[%clk 0:00:02.5]}
52... Qxd5+ {[%clk 0:00:05.8]} 53. Kg1 {[%clk 0:00:02.5]} 53... Qe6 {[%clk
0:00:04.6]} 54. Qxe6 {[%clk 0:00:01.8]} 54... fxe6 {[%clk 0:00:05.5]} 55. Nxg6
{[%clk 0:00:02.1]} 55... Kf7 {[%clk 0:00:06]} 56. Nh4 {[%clk 0:00:02.7]} 56...
Be7 {[%clk 0:00:05.5]} 57. Nf3 {[%clk 0:00:03.5]} 57... Bf6 {[%clk 0:00:05.9]}
58. Bd4 {[%clk 0:00:03.6]} 58... Bxd4+ {[%clk 0:00:05.2]} 59. Nxd4 {[%clk
0:00:04.5]} 59... Kf6 {[%clk 0:00:06.1]} 60. Nf3 {[%clk 0:00:04.9]} 60... e5
{[%clk 0:00:06.9]} 61. Kf2 {[%clk 0:00:05.5]} 61... e4 {[%clk 0:00:07.4]} 62.
Nd2 {[%clk 0:00:05.1]} 62... Ke5 {[%clk 0:00:08.3]} 63. Ke3 {[%clk 0:00:05.2]}
63... f4+ {[%clk 0:00:08.8]} 64. Ke2 {[%clk 0:00:05.8]} 64... Kd4 {[%clk
0:00:07.8]} 65. Nf1 {[%clk 0:00:06.1]} 65... e3 {[%clk 0:00:06.2]} 66. Nh2
{[%clk 0:00:05.6]} 66... Ke4 {[%clk 0:00:05.8]} 67. Nf3 {[%clk 0:00:06.5]} 67...
Kf5 {[%clk 0:00:06]} 68. Ne1 {[%clk 0:00:06.9]} 68... Ke4 {[%clk 0:00:06.2]} 69.
Nf3 {[%clk 0:00:07.8]} 69... Kf5 {[%clk 0:00:06.7]} 70. Ne1 {[%clk 0:00:08.7]}
70... Ke4 {[%clk 0:00:07.3]} 71. Nf3 {[%clk 0:00:09.6]} 1/2-1/2

[Event "*** SCC Grand Prix: Titled Tuesday Blitz"]
[Site "Chess.com"]
[Date "2020.09.29"]
[Round "3"]
[White "Caterpiller35"]
[Black "youngKID"]
[Result "0-1"]
[WhiteElo "2509"]
[BlackElo "2772"]
[TimeControl "180+1"]
[EndTime "10:29:13 PDT"]
[Termination "youngKID won by resignation"]

1. d4 {[%clk 0:02:59.3]} 1... Nf6 {[%clk 0:02:59.6]} 2. Bg5 {[%clk 0:02:59.1]}
2... Ne4 {[%clk 0:02:59.1]} 3. Bf4 {[%clk 0:02:59.1]} 3... g6 {[%clk 0:02:59.3]}
4. f3 {[%clk 0:02:56.9]} 4... Nf6 {[%clk 0:02:59.4]} 5. e4 {[%clk 0:02:56.9]}
5... d6 {[%clk 0:02:59.8]} 6. Nc3 {[%clk 0:02:56.8]} 6... Bg7 {[%clk 0:02:59.7]}
7. Qd2 {[%clk 0:02:57.1]} 7... a6 {[%clk 0:02:56.5]} 8. Bh6 {[%clk 0:02:55.6]}
8... Bxh6 {[%clk 0:02:55.6]} 9. Qxh6 {[%clk 0:02:56.5]} 9... b5 {[%clk
0:02:55.9]} 10. O-O-O {[%clk 0:02:44.6]} 10... b4 {[%clk 0:02:55.7]} 11. Nb1
{[%clk 0:02:36]} 11... Bb7 {[%clk 0:02:42.5]} 12. h4 {[%clk 0:02:20.5]} 12...
Nc6 {[%clk 0:02:35.2]} 13. Nh3 {[%clk 0:02:08.4]} 13... Qd7 {[%clk 0:02:29]} 14.
Ng5 {[%clk 0:01:51.7]} 14... O-O-O {[%clk 0:02:11.3]} 15. Nxf7 {[%clk
0:01:41.2]} 15... e5 {[%clk 0:02:11]} 16. Nxd8 {[%clk 0:01:35.5]} 16... Rxd8
{[%clk 0:02:05]} 17. dxe5 {[%clk 0:01:17.4]} 17... Nxe5 {[%clk 0:02:04.6]} 18.
Qd2 {[%clk 0:01:16.6]} 18... Qa4 {[%clk 0:02:04.3]} 19. a3 {[%clk 0:01:12.7]}
19... a5 {[%clk 0:01:54.6]} 20. b3 {[%clk 0:01:08.3]} 20... Qc6 {[%clk
0:01:50.9]} 21. axb4 {[%clk 0:01:06.5]} 21... a4 {[%clk 0:01:27.9]} 22. b5
{[%clk 0:00:54.4]} 22... Qe8 {[%clk 0:01:19.5]} 23. bxa4 {[%clk 0:00:51.5]}
23... d5 {[%clk 0:01:20]} 24. Qf4 {[%clk 0:00:32.8]} 24... Qe7 {[%clk
0:01:09.9]} 25. Qd2 {[%clk 0:00:10.8]} 25... Rd7 {[%clk 0:00:56.9]} 26. Qc3
{[%clk 0:00:07.5]} 26... dxe4 {[%clk 0:00:44.8]} 27. Rxd7 {[%clk 0:00:07.2]}
27... Nexd7 {[%clk 0:00:45.7]} 28. Bc4 {[%clk 0:00:05.9]} 28... Ne5 {[%clk
0:00:36.7]} 29. a5 {[%clk 0:00:05.4]} 29... exf3 {[%clk 0:00:30.2]} 30. gxf3
{[%clk 0:00:05.1]} 30... Nxf3 {[%clk 0:00:30.7]} 31. a6 {[%clk 0:00:04]} 31...
Ba8 {[%clk 0:00:30.5]} 32. Rd1 {[%clk 0:00:04]} 32... Kb8 {[%clk 0:00:21.4]} 33.
b6 {[%clk 0:00:04.1]} 33... cxb6 {[%clk 0:00:21]} 34. Na3 {[%clk 0:00:04.3]}
34... Bc6 {[%clk 0:00:14.2]} 35. Nb5 {[%clk 0:00:04.2]} 35... h6 {[%clk
0:00:01.7]} 36. Nd4 {[%clk 0:00:03.4]} 36... Nxd4 {[%clk 0:00:01.3]} 37. Qxd4
{[%clk 0:00:04.3]} 37... Ka7 {[%clk 0:00:01.9]} 38. Rf1 {[%clk 0:00:03.8]} 38...
Qa3+ {[%clk 0:00:01.8]} 39. Kd2 {[%clk 0:00:03.9]} 39... Ne4+ {[%clk 0:00:01.7]}
40. Ke2 {[%clk 0:00:03]} 40... Ng3+ {[%clk 0:00:01.9]} 41. Kf2 {[%clk
0:00:02.6]} 41... Nxf1 {[%clk 0:00:02.8]} 42. Qg7+ {[%clk 0:00:02.8]} 42... Ka8
{[%clk 0:00:02.6]} 43. Qc7 {[%clk 0:00:03.7]} 43... Qf3+ {[%clk 0:00:02]} 44.
Ke1 {[%clk 0:00:03.7]} 44... Ng3 {[%clk 0:00:02]} 45. Qc8+ {[%clk 0:00:03.4]}
45... Ka7 {[%clk 0:00:02.5]} 46. Qc7+ {[%clk 0:00:04.3]} 46... Bb7 {[%clk
0:00:02.9]} 47. Qxb7+ {[%clk 0:00:04.4]} 47... Qxb7 {[%clk 0:00:02.5]} 48. axb7
{[%clk 0:00:05.3]} 48... Kxb7 {[%clk 0:00:03.4]} 49. Kf2 {[%clk 0:00:05.7]}
49... Nf5 {[%clk 0:00:03.7]} 50. h5 {[%clk 0:00:05.9]} 50... g5 {[%clk
0:00:02.1]} 51. Bd3 {[%clk 0:00:06.8]} 51... Ng7 {[%clk 0:00:02.4]} 52. Kg3
{[%clk 0:00:07.3]} 52... Nxh5+ {[%clk 0:00:02.5]} 53. Kg4 {[%clk 0:00:08.2]}
53... Ng7 {[%clk 0:00:03.4]} 54. Be4+ {[%clk 0:00:08.4]} 54... Kc7 {[%clk
0:00:03.6]} 55. Bd5 {[%clk 0:00:08.9]} 55... Kd6 {[%clk 0:00:04]} 56. c4 {[%clk
0:00:09.1]} 56... Ke5 {[%clk 0:00:04]} 57. Bf7 {[%clk 0:00:09.2]} 57... Kf6
{[%clk 0:00:04.2]} 58. Bg8 {[%clk 0:00:09.5]} 58... h5+ {[%clk 0:00:04.3]} 59.
Kf3 {[%clk 0:00:09.1]} 59... Ke5 {[%clk 0:00:05.2]} 60. Kg3 {[%clk 0:00:09.1]}
60... Nf5+ {[%clk 0:00:05.5]} 61. Kf3 {[%clk 0:00:09.2]} 61... g4+ {[%clk
0:00:06.4]} 62. Kg2 {[%clk 0:00:09.1]} 62... Kf4 {[%clk 0:00:07.3]} 63. Bf7
{[%clk 0:00:09.3]} 63... h4 {[%clk 0:00:07.4]} 64. Bh5 {[%clk 0:00:10.2]} 64...
Ne3+ {[%clk 0:00:08.3]} 65. Kf2 {[%clk 0:00:10.3]} 65... Nxc4 {[%clk 0:00:09.1]}
0-1